[Event "*** Titled Tuesday Blitz"]
[Site "Chess.com"]
[Date "2021.04.27"]
[Round "10"]
[White "ljuks68"]
[Black "MuhittinBuker"]
[Result "1-0"]
[WhiteElo "2449"]
[BlackElo "2218"]
[TimeControl "180+1"]
[EndTime "11:55:10 PDT"]
[Termination "ljuks68 won by checkmate"]

1. e4 {[%clk 0:03:00.9]} 1... e5 {[%clk 0:02:56.8]} 2. Nf3 {[%clk 0:03:00.2]}
2... Nc6 {[%clk 0:02:54.1]} 3. Bb5 {[%clk 0:02:59.9]} 3... a6 {[%clk 0:02:53.3]}
4. Ba4 {[%clk 0:02:52.8]} 4... Nf6 {[%clk 0:02:52.6]} 5. Qe2 {[%clk 0:02:51.7]}
5... b5 {[%clk 0:02:50.6]} 6. Bb3 {[%clk 0:02:51.2]} 6... Bc5 {[%clk 0:02:49]}
7. c3 {[%clk 0:02:50.4]} 7... d6 {[%clk 0:02:49.4]} 8. d3 {[%clk 0:02:50]} 8...
Bg4 {[%clk 0:02:49.4]} 9. h3 {[%clk 0:02:46.9]} 9... Bh5 {[%clk 0:02:48.8]} 10.
g4 {[%clk 0:02:46.9]} 10... Bg6 {[%clk 0:02:48.5]} 11. Bg5 {[%clk 0:02:47.4]}
11... Qe7 {[%clk 0:02:34.3]} 12. Nbd2 {[%clk 0:02:41.1]} 12... Na5 {[%clk
0:02:33.5]} 13. Bc2 {[%clk 0:02:39.1]} 13... Bb6 {[%clk 0:02:31]} 14. Nf1 {[%clk
0:02:31]} 14... c5 {[%clk 0:02:30.5]} 15. Ne3 {[%clk 0:02:29.2]} 15... Qe6
{[%clk 0:02:28.6]} 16. b4 {[%clk 0:02:11.9]} 16... cxb4 {[%clk 0:02:26.9]} 17.
cxb4 {[%clk 0:02:11.4]} 17... Bxe3 {[%clk 0:02:27]} 18. fxe3 {[%clk 0:02:05]}
18... Nc6 {[%clk 0:02:23.7]} 19. Bb3 {[%clk 0:02:02.3]} 19... Qd7 {[%clk
0:02:18.4]} 20. Bxf6 {[%clk 0:01:56]} 20... gxf6 {[%clk 0:02:08.9]} 21. a3
{[%clk 0:01:54.1]} 21... h5 {[%clk 0:02:08.5]} 22. Nh4 {[%clk 0:01:43.5]} 22...
hxg4 {[%clk 0:02:06.7]} 23. hxg4 {[%clk 0:01:43]} 23... O-O-O {[%clk 0:01:52]}
24. Kd2 {[%clk 0:01:32]} 24... Kb8 {[%clk 0:01:48.8]} 25. a4 {[%clk 0:01:24.6]}
25... Nxb4 {[%clk 0:01:43.7]} 26. axb5 {[%clk 0:01:22.2]} 26... Qxb5 {[%clk
0:01:43.3]} 27. Bc4 {[%clk 0:01:04.7]} 27... Qb6 {[%clk 0:01:37.9]} 28. Nxg6
{[%clk 0:01:00.2]} 28... fxg6 {[%clk 0:01:36.1]} 29. Rhb1 {[%clk 0:00:58.9]}
29... a5 {[%clk 0:01:36]} 30. Rh1 {[%clk 0:00:44.8]} 30... g5 {[%clk 0:01:28.8]}
31. Qf3 {[%clk 0:00:39.2]} 31... Rxh1 {[%clk 0:01:17.4]} 32. Qxh1 {[%clk
0:00:38.1]} 32... Rc8 {[%clk 0:00:54.9]} 33. Ke2 {[%clk 0:00:35.2]} 33... Qa7
{[%clk 0:00:45.1]} 34. Qd1 {[%clk 0:00:27.7]} 34... Rh8 {[%clk 0:00:42.5]} 35.
Qg1 {[%clk 0:00:20.5]} 35... Rh4 {[%clk 0:00:40.4]} 36. Rf1 {[%clk 0:00:17.6]}
36... Nc2 {[%clk 0:00:35.8]} 37. Rxf6 {[%clk 0:00:09.8]} 37... Qh7 {[%clk
0:00:29.7]} 38. Rf8+ {[%clk 0:00:06.4]} 38... Kc7 {[%clk 0:00:29.7]} 39. Rf7+
{[%clk 0:00:06.8]} 39... Qxf7 {[%clk 0:00:29.2]} 40. Bxf7 {[%clk 0:00:07.2]}
40... Rh3 {[%clk 0:00:29]} 41. Bc4 {[%clk 0:00:05.6]} 41... Nb4 {[%clk
0:00:24.2]} 42. Qg2 {[%clk 0:00:04.5]} 42... Rh4 {[%clk 0:00:23]} 43. Qf2 {[%clk
0:00:04.1]} 43... Nc6 {[%clk 0:00:22.4]} 44. Qf7+ {[%clk 0:00:03.4]} 44... Kb6
{[%clk 0:00:22.6]} 45. Qe6 {[%clk 0:00:03]} 45... Rh2+ {[%clk 0:00:20.9]} 46.
Kf3 {[%clk 0:00:03.3]} 46... Rh3+ {[%clk 0:00:19.8]} 47. Kf2 {[%clk 0:00:03.5]}
47... Rh2+ {[%clk 0:00:19.6]} 48. Kg3 {[%clk 0:00:03.6]} 48... Re2 {[%clk
0:00:19.9]} 49. Qxd6 {[%clk 0:00:03.5]} 49... Rxe3+ {[%clk 0:00:19.4]} 50. Kf2
{[%clk 0:00:04]} 50... Rh3 {[%clk 0:00:18.8]} 51. Bd5 {[%clk 0:00:04.6]} 51...
Rh2+ {[%clk 0:00:18.3]} 52. Kg3 {[%clk 0:00:03.4]} 52... Rc2 {[%clk 0:00:18.3]}
53. Bxc6 {[%clk 0:00:03.8]} 53... Rxc6 {[%clk 0:00:17.5]} 54. Qxe5 {[%clk
0:00:04.7]} 54... Rc5 {[%clk 0:00:13.9]} 55. Qd4 {[%clk 0:00:04.9]} 55... Kb5
{[%clk 0:00:13.9]} 56. e5 {[%clk 0:00:05.3]} 56... a4 {[%clk 0:00:14]} 57. e6
{[%clk 0:00:05.6]} 57... a3 {[%clk 0:00:14.4]} 58. e7 {[%clk 0:00:05.5]} 58...
Rc8 {[%clk 0:00:14.6]} 59. Qd7+ {[%clk 0:00:05.6]} 59... Kb4 {[%clk 0:00:14.4]}
60. Qxc8 {[%clk 0:00:05.7]} 60... a2 {[%clk 0:00:15.1]} 61. Qa6 {[%clk 0:00:05]}
61... Kc3 {[%clk 0:00:14.5]} 62. e8=Q {[%clk 0:00:05.5]} 62... Kd2 {[%clk
0:00:12.5]} 63. Qe5 {[%clk 0:00:05.7]} 63... a1=Q {[%clk 0:00:10.9]} 64. Qaa5+
{[%clk 0:00:04.7]} 64... Kc2 {[%clk 0:00:09.2]} 65. Qexa1 {[%clk 0:00:03.6]}
65... Kxd3 {[%clk 0:00:09]} 66. Q5c3+ {[%clk 0:00:03.3]} 66... Ke4 {[%clk
0:00:08.4]} 67. Qae1+ {[%clk 0:00:03.5]} 67... Kd5 {[%clk 0:00:08.1]} 68. Qee5#
{[%clk 0:00:03.9]} 1-0

[Event "*** Titled Tuesday Blitz"]
[Site "Chess.com"]
[Date "2021.04.27"]
[Round "10"]
[White "Ajedrez_con_German"]
[Black "vinniethepooh"]
[Result "1-0"]
[WhiteElo "2543"]
[BlackElo "2702"]
[TimeControl "180+1"]
[EndTime "11:55:14 PDT"]
[Termination "Ajedrez_con_German won by resignation"]

1. d4 {[%clk 0:02:59.6]} 1... Nf6 {[%clk 0:02:59.8]} 2. Bf4 {[%clk 0:02:57.8]}
2... d5 {[%clk 0:02:59.5]} 3. e3 {[%clk 0:02:56.2]} 3... c5 {[%clk 0:03:00.1]}
4. c3 {[%clk 0:02:56]} 4... Nc6 {[%clk 0:03:00.5]} 5. Nd2 {[%clk 0:02:55.6]}
5... e6 {[%clk 0:03:01.1]} 6. Ngf3 {[%clk 0:02:51.8]} 6... cxd4 {[%clk
0:03:01.6]} 7. exd4 {[%clk 0:02:47.5]} 7... Nh5 {[%clk 0:03:02.1]} 8. Bg5 {[%clk
0:02:38.8]} 8... f6 {[%clk 0:03:02.1]} 9. Bh4 {[%clk 0:02:38.5]} 9... Bd6 {[%clk
0:02:53.3]} 10. Bg3 {[%clk 0:02:30.5]} 10... O-O {[%clk 0:02:44.5]} 11. Bd3
{[%clk 0:02:28.9]} 11... g6 {[%clk 0:02:42.2]} 12. O-O {[%clk 0:02:21.7]} 12...
e5 {[%clk 0:02:20.8]} 13. dxe5 {[%clk 0:02:18.1]} 13... fxe5 {[%clk 0:02:21.7]}
14. Qb3 {[%clk 0:02:03.8]} 14... Be6 {[%clk 0:02:17.4]} 15. Qxb7 {[%clk
0:01:45.4]} 15... Na5 {[%clk 0:02:15.1]} 16. Qa6 {[%clk 0:01:40.9]} 16... Nxg3
{[%clk 0:02:11]} 17. hxg3 {[%clk 0:01:35.6]} 17... e4 {[%clk 0:02:11]} 18. Bxe4
{[%clk 0:01:16.1]} 18... dxe4 {[%clk 0:01:58.1]} 19. Nxe4 {[%clk 0:01:16.2]}
19... Bc4 {[%clk 0:01:53.7]} 20. Qxd6 {[%clk 0:01:13]} 20... Qxd6 {[%clk
0:01:53.6]} 21. Nxd6 {[%clk 0:01:12.6]} 21... Bxf1 {[%clk 0:01:54.5]} 22. Kxf1
{[%clk 0:00:57.8]} 22... Rad8 {[%clk 0:01:50.3]} 23. Ne4 {[%clk 0:00:52.5]}
23... Kg7 {[%clk 0:01:37.1]} 24. Nd4 {[%clk 0:00:49.1]} 24... Rfe8 {[%clk
0:01:30.1]} 25. Ng5 {[%clk 0:00:39.8]} 25... Rb8 {[%clk 0:01:29]} 26. b3 {[%clk
0:00:35.9]} 26... h6 {[%clk 0:01:27.6]} 27. Nge6+ {[%clk 0:00:33.2]} 27... Kf6
{[%clk 0:01:28.2]} 28. Nf4 {[%clk 0:00:32.6]} 28... Rbc8 {[%clk 0:01:25.2]} 29.
c4 {[%clk 0:00:30.6]} 29... Kf7 {[%clk 0:01:14.8]} 30. Nd5 {[%clk 0:00:28.4]}
30... Red8 {[%clk 0:01:14.7]} 31. Re1 {[%clk 0:00:27.4]} 31... Rd7 {[%clk
0:01:10.3]} 32. f4 {[%clk 0:00:26.6]} 32... Nc6 {[%clk 0:00:33]} 33. Nxc6 {[%clk
0:00:25.6]} 33... Rxc6 {[%clk 0:00:33.9]} 34. Kf2 {[%clk 0:00:24]} 34... Ra6
{[%clk 0:00:32.6]} 35. Re2 {[%clk 0:00:23.9]} 35... Rad6 {[%clk 0:00:27.3]} 36.
Kf3 {[%clk 0:00:24.1]} 36... a5 {[%clk 0:00:27.5]} 37. g4 {[%clk 0:00:23]} 37...
a4 {[%clk 0:00:27.4]} 38. f5 {[%clk 0:00:20.1]} 38... axb3 {[%clk 0:00:25.1]}
39. axb3 {[%clk 0:00:19.4]} 39... Rb7 {[%clk 0:00:25.7]} 40. b4 {[%clk
0:00:16.7]} 40... Rc6 {[%clk 0:00:14.2]} 41. Rc2 {[%clk 0:00:15.1]} 41... Rd7
{[%clk 0:00:13.4]} 42. Ke4 {[%clk 0:00:13.9]} 42... gxf5+ {[%clk 0:00:13.7]} 43.
gxf5 {[%clk 0:00:14]} 43... Rc8 {[%clk 0:00:14.2]} 44. Kd4 {[%clk 0:00:13.9]}
44... Rg8 {[%clk 0:00:10.4]} 45. b5 {[%clk 0:00:12.9]} 45... Rc8 {[%clk
0:00:05.9]} 46. b6 {[%clk 0:00:12]} 46... Rb7 {[%clk 0:00:03.4]} 47. Rb2 {[%clk
0:00:11.4]} 47... Rc6 {[%clk 0:00:04]} 48. c5 {[%clk 0:00:09.8]} 48... Ke8
{[%clk 0:00:04.5]} 49. Nb4 {[%clk 0:00:08.2]} 49... Rf6 {[%clk 0:00:04.7]} 50.
Ke5 {[%clk 0:00:07.1]} 50... Kf7 {[%clk 0:00:02.8]} 51. Nd5 {[%clk 0:00:07.2]}
51... Rc6 {[%clk 0:00:03.2]} 52. Kd4 {[%clk 0:00:07.4]} 52... Ke8 {[%clk
0:00:03.6]} 53. Kc4 {[%clk 0:00:07.5]} 53... Kd8 {[%clk 0:00:03.4]} 54. Nb4
{[%clk 0:00:07.3]} 54... Rf6 {[%clk 0:00:03.5]} 55. g4 {[%clk 0:00:07.8]} 55...
Re7 {[%clk 0:00:03]} 56. Nd3 {[%clk 0:00:07.6]} 56... Re4+ {[%clk 0:00:03.1]}
57. Kc3 {[%clk 0:00:07.7]} 57... Kc8 {[%clk 0:00:03]} 58. Nb4 {[%clk 0:00:06]}
58... Kb7 {[%clk 0:00:02.8]} 59. c6+ {[%clk 0:00:05.7]} 59... Kxb6 {[%clk
0:00:01.9]} 60. Nd5+ {[%clk 0:00:05.5]} 60... Kxc6 {[%clk 0:00:02.6]} 61. Nxf6
{[%clk 0:00:05.7]} 61... Re3+ {[%clk 0:00:03.3]} 62. Kd4 {[%clk 0:00:05.9]}
62... Re7 {[%clk 0:00:04.2]} 63. Ne4 {[%clk 0:00:05.5]} 63... Ra7 {[%clk
0:00:04.5]} 64. Ke3 {[%clk 0:00:05.6]} 64... Kd5 {[%clk 0:00:04.7]} 65. Kf4
{[%clk 0:00:05.6]} 65... Ra4 {[%clk 0:00:05.3]} 66. Rd2+ {[%clk 0:00:05.9]}
66... Kc6 {[%clk 0:00:04.9]} 67. f6 {[%clk 0:00:06.2]} 67... Ra7 {[%clk
0:00:04.7]} 68. Kf5 {[%clk 0:00:06.6]} 68... Kc7 {[%clk 0:00:04.7]} 69. g5
{[%clk 0:00:07.1]} 69... hxg5 {[%clk 0:00:04.8]} 70. Nxg5 {[%clk 0:00:07.4]}
70... Ra2 {[%clk 0:00:05.2]} 71. Rxa2 {[%clk 0:00:05.6]} 1-0

[Event "*** Titled Tuesday Blitz"]
[Site "Chess.com"]
[Date "2021.04.27"]
[Round "10"]
[White "Vaathi_Coming"]
[Black "OK97"]
[Result "0-1"]
[WhiteElo "2875"]
[BlackElo "2770"]
[TimeControl "180+1"]
[EndTime "11:55:35 PDT"]
[Termination "OK97 won by resignation"]

1. b3 {[%clk 0:03:00.9]} 1... e5 {[%clk 0:02:59.3]} 2. Bb2 {[%clk 0:03:01.8]}
2... Nc6 {[%clk 0:02:59.7]} 3. g3 {[%clk 0:03:01.8]} 3... d5 {[%clk 0:02:58.7]}
4. Bg2 {[%clk 0:03:02.3]} 4... Nf6 {[%clk 0:02:55.7]} 5. e3 {[%clk 0:03:02.6]}
5... Bd6 {[%clk 0:02:49.3]} 6. d3 {[%clk 0:03:02.6]} 6... Be6 {[%clk 0:02:43.2]}
7. Nd2 {[%clk 0:03:02.2]} 7... Qd7 {[%clk 0:02:42.8]} 8. h3 {[%clk 0:03:01.5]}
8... O-O {[%clk 0:02:36.1]} 9. Ne2 {[%clk 0:03:01.5]} 9... a5 {[%clk 0:02:34.8]}
10. a3 {[%clk 0:03:01.1]} 10... b5 {[%clk 0:02:26.2]} 11. g4 {[%clk 0:03:00.4]}
11... Qe7 {[%clk 0:02:15.5]} 12. Ng3 {[%clk 0:02:58.5]} 12... g6 {[%clk
0:02:12.1]} 13. O-O {[%clk 0:02:51.2]} 13... Rab8 {[%clk 0:02:00.3]} 14. Qe2
{[%clk 0:02:47.2]} 14... Nd7 {[%clk 0:01:55.7]} 15. f4 {[%clk 0:02:44.6]} 15...
f6 {[%clk 0:01:41.7]} 16. Kh2 {[%clk 0:02:26.1]} 16... Bf7 {[%clk 0:01:38.8]}
17. f5 {[%clk 0:02:20.4]} 17... g5 {[%clk 0:01:00.8]} 18. e4 {[%clk 0:02:12.7]}
18... d4 {[%clk 0:00:58.4]} 19. Nf3 {[%clk 0:02:12.9]} 19... Kg7 {[%clk
0:00:50.2]} 20. Kg1 {[%clk 0:02:11.3]} 20... a4 {[%clk 0:00:45.2]} 21. b4 {[%clk
0:02:09.7]} 21... Na7 {[%clk 0:00:45.7]} 22. h4 {[%clk 0:02:08.9]} 22... h6
{[%clk 0:00:46]} 23. Bc1 {[%clk 0:02:05]} 23... c5 {[%clk 0:00:44]} 24. bxc5
{[%clk 0:02:05.1]} 24... Bxc5 {[%clk 0:00:42.3]} 25. hxg5 {[%clk 0:01:54.8]}
25... hxg5 {[%clk 0:00:42.3]} 26. Nxg5 {[%clk 0:01:53]} 26... Rh8 {[%clk
0:00:29.4]} 27. Nxf7 {[%clk 0:01:48.2]} 27... Qxf7 {[%clk 0:00:29.6]} 28. Nh5+
{[%clk 0:01:38.7]} 28... Kf8 {[%clk 0:00:26.3]} 29. Bf3 {[%clk 0:01:37.8]} 29...
Ke7 {[%clk 0:00:19.4]} 30. g5 {[%clk 0:01:36.8]} 30... fxg5 {[%clk 0:00:17.9]}
31. Bxg5+ {[%clk 0:01:37.7]} 31... Kd6 {[%clk 0:00:18.3]} 32. Kf2 {[%clk
0:01:38.3]} 32... Rbg8 {[%clk 0:00:18]} 33. Rg1 {[%clk 0:01:38.9]} 33... Nc6
{[%clk 0:00:15.4]} 34. Rg2 {[%clk 0:01:32.7]} 34... Kc7 {[%clk 0:00:13]} 35.
Rgg1 {[%clk 0:01:01.2]} 35... Qf8 {[%clk 0:00:13.1]} 36. Rab1 {[%clk 0:00:55.7]}
36... b4 {[%clk 0:00:12.1]} 37. axb4 {[%clk 0:00:55.2]} 37... Bxb4 {[%clk
0:00:13]} 38. Bd2 {[%clk 0:00:41]} 38... Rxg1 {[%clk 0:00:08.3]} 39. Rxg1 {[%clk
0:00:40.9]} 39... a3 {[%clk 0:00:08.1]} 40. Qd1 {[%clk 0:00:14]} 40... Qe7
{[%clk 0:00:07.6]} 41. Bg5 {[%clk 0:00:08]} 41... Qc5 {[%clk 0:00:06]} 42. Ng7
{[%clk 0:00:07.2]} 42... Qc3 {[%clk 0:00:03.3]} 43. Ne6+ {[%clk 0:00:07.1]}
43... Kd6 {[%clk 0:00:03.9]} 44. Kg3 {[%clk 0:00:05.2]} 44... a2 {[%clk
0:00:03.7]} 45. Bg4 {[%clk 0:00:03.6]} 45... Ra8 {[%clk 0:00:04]} 46. Qe2 {[%clk
0:00:03.2]} 46... a1=Q {[%clk 0:00:04]} 47. Rxa1 {[%clk 0:00:03.7]} 47... Rxa1
{[%clk 0:00:04.9]} 48. f6 {[%clk 0:00:03.5]} 48... Rg1+ {[%clk 0:00:04.5]} 49.
Kh2 {[%clk 0:00:03.3]} 49... Qa1 {[%clk 0:00:04.9]} 50. Bf3 {[%clk 0:00:02.9]}
50... Re1 {[%clk 0:00:04.3]} 51. Qg2 {[%clk 0:00:03.2]} 51... Rf1 {[%clk
0:00:02.5]} 52. f7 {[%clk 0:00:03.1]} 52... Qe1 {[%clk 0:00:02.9]} 53. f8=Q+
{[%clk 0:00:02.8]} 53... Nxf8 {[%clk 0:00:02.9]} 54. Nxf8 {[%clk 0:00:03.5]}
54... Rf2 {[%clk 0:00:03.2]} 55. Ng6 {[%clk 0:00:03.3]} 55... Rxg2+ {[%clk
0:00:03.7]} 56. Bxg2 {[%clk 0:00:04.2]} 56... Bd2 {[%clk 0:00:04]} 57. Bh4
{[%clk 0:00:03.1]} 57... Qc1 {[%clk 0:00:04.3]} 58. Bg3 {[%clk 0:00:02.9]} 58...
Qxc2 {[%clk 0:00:04.7]} 59. Nh4 {[%clk 0:00:01.9]} 59... Be3 {[%clk 0:00:05]}
60. Nf5+ {[%clk 0:00:02.2]} 60... Kc5 {[%clk 0:00:05]} 61. Kh3 {[%clk
0:00:02.7]} 61... Qc1 {[%clk 0:00:05.3]} 62. Bf3 {[%clk 0:00:02.8]} 62... Qd2
{[%clk 0:00:05.3]} 63. Kg4 {[%clk 0:00:03.3]} 63... Qxd3 {[%clk 0:00:05.7]} 64.
Bh4 {[%clk 0:00:03.6]} 64... Qd2 {[%clk 0:00:05.9]} 65. Bf6 {[%clk 0:00:03.3]}
65... Bf4 {[%clk 0:00:06.1]} 66. Bg7 {[%clk 0:00:03.2]} 66... d3 {[%clk
0:00:06.6]} 67. Bf8+ {[%clk 0:00:03.7]} 67... Kb6 {[%clk 0:00:06.7]} 68. Nd6
{[%clk 0:00:04.1]} 68... Qe1 {[%clk 0:00:06.2]} 69. Nc4+ {[%clk 0:00:04.2]}
69... Kc7 {[%clk 0:00:06.6]} 70. Bd6+ {[%clk 0:00:03.9]} 70... Kd8 {[%clk
0:00:06.9]} 71. Bc5 {[%clk 0:00:04.8]} 71... d2 {[%clk 0:00:07.2]} 72. Bb6+
{[%clk 0:00:04.4]} 72... Kd7 {[%clk 0:00:07.8]} 73. Nb2 {[%clk 0:00:04.6]} 73...
Nd4 {[%clk 0:00:07.1]} 74. Bxd4 {[%clk 0:00:04.4]} 74... Qg3+ {[%clk 0:00:06.6]}
75. Kf5 {[%clk 0:00:04.9]} 75... Qxf3 {[%clk 0:00:06]} 76. Nc4 {[%clk
0:00:02.3]} 76... exd4 {[%clk 0:00:05.9]} 77. Ne5+ {[%clk 0:00:01.2]} 77...
Bxe5+ {[%clk 0:00:06.1]} 78. Kxe5 {[%clk 0:00:01.7]} 78... d1=Q {[%clk
0:00:06.5]} 0-1

[Event "*** Titled Tuesday Blitz"]
[Site "Chess.com"]
[Date "2021.04.27"]
[Round "10"]
[White "davidkalashian"]
[Black "Dyadya81"]
[Result "0-1"]
[WhiteElo "2585"]
[BlackElo "2722"]
[TimeControl "180+1"]
[EndTime "11:55:39 PDT"]
[Termination "Dyadya81 won by checkmate"]

1. d4 {[%clk 0:03:00.9]} 1... Nf6 {[%clk 0:02:58.3]} 2. c4 {[%clk 0:03:00.1]}
2... g6 {[%clk 0:02:58.3]} 3. Nc3 {[%clk 0:02:59.7]} 3... Bg7 {[%clk 0:02:58.8]}
4. e4 {[%clk 0:02:59.6]} 4... d6 {[%clk 0:02:59.3]} 5. Be2 {[%clk 0:02:59.4]}
5... O-O {[%clk 0:02:59.7]} 6. Bg5 {[%clk 0:02:58.7]} 6... Nbd7 {[%clk
0:02:55.3]} 7. Qd2 {[%clk 0:02:56.6]} 7... e5 {[%clk 0:02:52.3]} 8. d5 {[%clk
0:02:56.4]} 8... Nc5 {[%clk 0:02:42.6]} 9. f3 {[%clk 0:02:56.3]} 9... a5 {[%clk
0:02:42.2]} 10. g4 {[%clk 0:02:55.6]} 10... c6 {[%clk 0:02:37.7]} 11. h4 {[%clk
0:02:52.7]} 11... cxd5 {[%clk 0:02:14.6]} 12. cxd5 {[%clk 0:02:42.8]} 12... a4
{[%clk 0:01:47.3]} 13. h5 {[%clk 0:02:40.3]} 13... Qb6 {[%clk 0:01:44.1]} 14.
Rd1 {[%clk 0:02:22.3]} 14... a3 {[%clk 0:01:32.7]} 15. b3 {[%clk 0:02:19.3]}
15... Qb4 {[%clk 0:01:31.4]} 16. h6 {[%clk 0:01:53.7]} 16... Bh8 {[%clk
0:01:30.6]} 17. Nb5 {[%clk 0:01:53.8]} 17... Qxd2+ {[%clk 0:01:14.8]} 18. Bxd2
{[%clk 0:01:54.7]} 18... Bxg4 {[%clk 0:00:57.6]} 19. fxg4 {[%clk 0:01:51.7]}
19... Nfxe4 {[%clk 0:00:56.4]} 20. Bb4 {[%clk 0:01:47.8]} 20... Bf6 {[%clk
0:00:48.9]} 21. Nxd6 {[%clk 0:01:43.9]} 21... Nxd6 {[%clk 0:00:34]} 22. Bxc5
{[%clk 0:01:43.4]} 22... Ne4 {[%clk 0:00:29.2]} 23. Bxf8 {[%clk 0:01:40.4]}
23... Kxf8 {[%clk 0:00:29.6]} 24. Nf3 {[%clk 0:01:38.6]} 24... Nc3 {[%clk
0:00:29.9]} 25. Rd2 {[%clk 0:01:37.2]} 25... e4 {[%clk 0:00:29.5]} 26. Ng5
{[%clk 0:01:09.5]} 26... Bxg5 {[%clk 0:00:28.8]} 27. Rc2 {[%clk 0:01:07.2]}
27... Nxd5 {[%clk 0:00:28.9]} 28. Bc4 {[%clk 0:01:04.6]} 28... Nb4 {[%clk
0:00:28.8]} 29. Rf2 {[%clk 0:01:02.4]} 29... f6 {[%clk 0:00:28.3]} 30. Re2
{[%clk 0:00:50.4]} 30... Rd8 {[%clk 0:00:20.4]} 31. O-O {[%clk 0:00:34.5]} 31...
e3 {[%clk 0:00:20]} 32. Rfe1 {[%clk 0:00:13.5]} 32... Rd2 {[%clk 0:00:17.1]} 33.
Ra1 {[%clk 0:00:10.9]} 33... Bxh6 {[%clk 0:00:13.6]} 34. Rxd2 {[%clk 0:00:10.3]}
34... exd2 {[%clk 0:00:14.5]} 35. Be2 {[%clk 0:00:10.8]} 35... Nc2 {[%clk
0:00:09.8]} 36. Rf1 {[%clk 0:00:08.7]} 36... Ke7 {[%clk 0:00:09.2]} 37. Kf2
{[%clk 0:00:07.7]} 37... Be3+ {[%clk 0:00:07.4]} 38. Kf3 {[%clk 0:00:07.4]}
38... Bg5 {[%clk 0:00:07.4]} 39. Ke4 {[%clk 0:00:06.7]} 39... Ne1 {[%clk
0:00:07]} 40. Bd1 {[%clk 0:00:05.9]} 40... Kd6 {[%clk 0:00:06.3]} 41. Rh1 {[%clk
0:00:06.4]} 41... h6 {[%clk 0:00:06.2]} 42. Rf1 {[%clk 0:00:05.9]} 42... b5
{[%clk 0:00:06]} 43. Kd4 {[%clk 0:00:06.1]} 43... b4 {[%clk 0:00:05.9]} 44. Kc4
{[%clk 0:00:06.2]} 44... Ke5 {[%clk 0:00:06]} 45. Kxb4 {[%clk 0:00:05.9]} 45...
f5 {[%clk 0:00:06.4]} 46. Kc3 {[%clk 0:00:05.7]} 46... fxg4 {[%clk 0:00:06.6]}
47. Bxg4 {[%clk 0:00:06.6]} 47... h5 {[%clk 0:00:06.8]} 48. Bd1 {[%clk
0:00:07.2]} 48... h4 {[%clk 0:00:06.9]} 49. Rg1 {[%clk 0:00:07.5]} 49... Kf4
{[%clk 0:00:06.9]} 50. Rh1 {[%clk 0:00:06.4]} 50... Kg3 {[%clk 0:00:06.4]} 51.
Rg1+ {[%clk 0:00:06.8]} 51... Ng2 {[%clk 0:00:06.8]} 52. Kd3 {[%clk 0:00:05.3]}
52... h3 {[%clk 0:00:07.2]} 53. Ke4 {[%clk 0:00:05.6]} 53... h2 {[%clk
0:00:07.6]} 54. Rh1 {[%clk 0:00:06.3]} 54... Ne1 {[%clk 0:00:06.8]} 55. b4
{[%clk 0:00:06.7]} 55... Kg2 {[%clk 0:00:07.2]} 56. Rxh2+ {[%clk 0:00:06.2]}
56... Kxh2 {[%clk 0:00:08.1]} 57. b5 {[%clk 0:00:06.9]} 57... Bd8 {[%clk
0:00:08.7]} 58. Ke3 {[%clk 0:00:06.3]} 58... g5 {[%clk 0:00:08.2]} 59. Kxd2
{[%clk 0:00:06]} 59... Ba5+ {[%clk 0:00:08.3]} 60. Ke2 {[%clk 0:00:05.3]} 60...
Ng2 {[%clk 0:00:07.2]} 61. Kf3 {[%clk 0:00:05.6]} 61... Kh3 {[%clk 0:00:07]} 62.
Bb3 {[%clk 0:00:04.6]} 62... g4+ {[%clk 0:00:07.3]} 63. Ke2 {[%clk 0:00:04.7]}
63... Nf4+ {[%clk 0:00:07.1]} 64. Kf1 {[%clk 0:00:04.2]} 64... g3 {[%clk
0:00:06.9]} 65. Bd5 {[%clk 0:00:02.3]} 65... Nxd5 {[%clk 0:00:06.6]} 66. b6
{[%clk 0:00:03.2]} 66... Bxb6 {[%clk 0:00:06.4]} 67. Ke2 {[%clk 0:00:02.8]}
67... g2 {[%clk 0:00:06.9]} 68. Kf3 {[%clk 0:00:03.7]} 68... g1=Q {[%clk
0:00:07.4]} 69. Ke4 {[%clk 0:00:04.6]} 69... Qd4+ {[%clk 0:00:07.6]} 70. Kf5
{[%clk 0:00:05.5]} 70... Qe3 {[%clk 0:00:06.7]} 71. Kg6 {[%clk 0:00:05.5]} 71...
Qe6+ {[%clk 0:00:06.9]} 72. Kh5 {[%clk 0:00:06.4]} 72... Qf5+ {[%clk 0:00:06.7]}
73. Kh6 {[%clk 0:00:06.5]} 73... Be3+ {[%clk 0:00:06.7]} 74. Kg7 {[%clk
0:00:07.4]} 74... Qf6+ {[%clk 0:00:07]} 75. Kg8 {[%clk 0:00:08.1]} 75... Ne7+
{[%clk 0:00:06.6]} 76. Kh7 {[%clk 0:00:09]} 76... Qh6# {[%clk 0:00:07]} 0-1